[Event "*** Titled Tuesday Blitz"]
[Site "Chess.com"]
[Date "2019.02.05"]
[Round "8"]
[White "AbdAlAgathos"]
[Black "Tolya2"]
[Result "0-1"]
[WhiteElo "2339"]
[BlackElo "2534"]
[TimeControl "180+2"]
[EndTime "14:57:15 PST"]
[Termination "Tolya2 won by checkmate"]

1. e4 {[%clk 0:03:01.9]} 1... c5 {[%clk 0:03:00.1]} 2. Nf3 {[%clk 0:03:02.5]}
2... d6 {[%clk 0:03:01.1]} 3. c3 {[%clk 0:03:03.6]} 3... Nf6 {[%clk 0:03:00.6]}
4. Be2 {[%clk 0:03:04.5]} 4... e6 {[%clk 0:03:00.3]} 5. O-O {[%clk 0:03:03.5]}
5... Be7 {[%clk 0:03:01.1]} 6. Re1 {[%clk 0:03:03.2]} 6... O-O {[%clk
0:03:01.2]} 7. Bf1 {[%clk 0:03:04.3]} 7... a6 {[%clk 0:03:00.8]} 8. d4 {[%clk
0:03:04.7]} 8... Nbd7 {[%clk 0:02:57.9]} 9. e5 {[%clk 0:02:44.2]} 9... dxe5
{[%clk 0:02:57.4]} 10. dxe5 {[%clk 0:02:46.1]} 10... Nd5 {[%clk 0:02:57]} 11.
Nbd2 {[%clk 0:02:44.9]} 11... Qc7 {[%clk 0:02:53]} 12. Qc2 {[%clk 0:02:41]}
12... b5 {[%clk 0:02:50.6]} 13. a4 {[%clk 0:02:34.1]} 13... b4 {[%clk 0:02:37]}
14. Qe4 {[%clk 0:02:16.3]} 14... Bb7 {[%clk 0:02:34.7]} 15. Qg4 {[%clk
0:02:15.4]} 15... bxc3 {[%clk 0:02:33.8]} 16. bxc3 {[%clk 0:02:17.3]} 16... Nxc3
{[%clk 0:02:32.7]} 17. Nc4 {[%clk 0:02:13.8]} 17... Kh8 {[%clk 0:02:31.1]} 18.
Bd3 {[%clk 0:02:00.5]} 18... Bxf3 {[%clk 0:02:29.3]} 19. Qxf3 {[%clk 0:02:00.4]}
19... Nd5 {[%clk 0:02:29.5]} 20. Qh3 {[%clk 0:01:54.2]} 20... g6 {[%clk
0:02:26.6]} 21. Bh6 {[%clk 0:01:31.8]} 21... Rfb8 {[%clk 0:02:26.9]} 22. Qf3
{[%clk 0:01:29.2]} 22... Kg8 {[%clk 0:02:21.5]} 23. Be4 {[%clk 0:01:18.5]} 23...
Bf8 {[%clk 0:01:38.3]} 24. Bxf8 {[%clk 0:01:05.1]} 24... Nxf8 {[%clk 0:01:38.9]}
25. Nd6 {[%clk 0:00:55.3]} 25... Rb4 {[%clk 0:01:29.5]} 26. Bxd5 {[%clk
0:00:48.1]} 26... exd5 {[%clk 0:01:30.5]} 27. Qxd5 {[%clk 0:00:50]} 27... Rd8
{[%clk 0:01:26.5]} 28. h4 {[%clk 0:00:38.8]} 28... Rd4 {[%clk 0:01:26.7]} 29.
Qa2 {[%clk 0:00:27]} 29... c4 {[%clk 0:01:26.3]} 30. h5 {[%clk 0:00:25.3]} 30...
c3 {[%clk 0:01:23.1]} 31. Rac1 {[%clk 0:00:15.6]} 31... Ne6 {[%clk 0:01:23.1]}
32. hxg6 {[%clk 0:00:15.4]} 32... hxg6 {[%clk 0:01:23.3]} 33. Re3 {[%clk
0:00:14.5]} 33... R8xd6 {[%clk 0:01:15.3]} 34. exd6 {[%clk 0:00:16.4]} 34...
Qxd6 {[%clk 0:01:16.3]} 35. Rexc3 {[%clk 0:00:15.4]} 35... Rd1+ {[%clk
0:01:16.8]} 36. Rxd1 {[%clk 0:00:16.8]} 36... Qxd1+ {[%clk 0:01:17.5]} 37. Kh2
{[%clk 0:00:18.1]} 37... Qd6+ {[%clk 0:01:18.2]} 38. g3 {[%clk 0:00:17]} 38...
Ng5 {[%clk 0:01:16.6]} 39. Qe2 {[%clk 0:00:15.6]} 39... Qd5 {[%clk 0:01:11.6]}
40. Rc8+ {[%clk 0:00:13]} 40... Kg7 {[%clk 0:01:12.4]} 41. Qb2+ {[%clk
0:00:12.3]} 41... f6 {[%clk 0:01:07.2]} 42. Rc7+ {[%clk 0:00:10.3]} 42... Kh6
{[%clk 0:01:07.1]} 43. Qxf6 {[%clk 0:00:06.1]} 43... Nf3+ {[%clk 0:01:07.1]} 44.
Kh3 {[%clk 0:00:06.4]} 44... Ng5+ {[%clk 0:01:00.6]} 45. Kg4 {[%clk 0:00:07.5]}
45... Qe4+ {[%clk 0:00:58.2]} 46. Qf4 {[%clk 0:00:05.7]} 46... Qe6+ {[%clk
0:00:58.1]} 47. Kh4 {[%clk 0:00:06.1]} 47... Qh3# {[%clk 0:00:58.8]} 0-1

[Event "*** Titled Tuesday Blitz"]
[Site "Chess.com"]
[Date "2019.02.05"]
[Round "8"]
[White "Alexander_Donchenko"]
[Black "Sanan_Sjugirov"]
[Result "0-1"]
[WhiteElo "2683"]
[BlackElo "2835"]
[TimeControl "180+2"]
[EndTime "14:57:16 PST"]
[Termination "Sanan_Sjugirov won by checkmate"]

1. Nf3 {[%clk 0:03:01.9]} 1... c5 {[%clk 0:02:57.1]} 2. c4 {[%clk 0:03:01.1]}
2... Nc6 {[%clk 0:02:58.4]} 3. Nc3 {[%clk 0:03:02.1]} 3... e5 {[%clk 0:02:59.6]}
4. g3 {[%clk 0:03:03]} 4... g6 {[%clk 0:03:00.7]} 5. Bg2 {[%clk 0:03:04.4]} 5...
Bg7 {[%clk 0:03:02.1]} 6. O-O {[%clk 0:03:05.5]} 6... Nge7 {[%clk 0:03:03.5]} 7.
a3 {[%clk 0:03:06.8]} 7... O-O {[%clk 0:03:03.6]} 8. Rb1 {[%clk 0:03:08.1]} 8...
d5 {[%clk 0:02:54]} 9. cxd5 {[%clk 0:03:07.2]} 9... Nxd5 {[%clk 0:02:55.9]} 10.
Nxe5 {[%clk 0:03:04.4]} 10... Nxc3 {[%clk 0:02:38.1]} 11. Nxc6 {[%clk
0:03:05.2]} 11... Nxe2+ {[%clk 0:02:38.6]} 12. Qxe2 {[%clk 0:03:05.4]} 12...
bxc6 {[%clk 0:02:40.3]} 13. b4 {[%clk 0:02:43.5]} 13... Re8 {[%clk 0:02:24.3]}
14. Qf3 {[%clk 0:02:14.9]} 14... Ba6 {[%clk 0:02:03.5]} 15. d3 {[%clk
0:01:45.5]} 15... Bxd3 {[%clk 0:01:49.6]} 16. Rd1 {[%clk 0:01:41.5]} 16... Bxb1
{[%clk 0:01:50.1]} 17. Rxd8 {[%clk 0:01:42.2]} 17... Raxd8 {[%clk 0:01:52]} 18.
Be3 {[%clk 0:01:31.9]} 18... Be4 {[%clk 0:01:50.5]} 19. Qe2 {[%clk 0:01:28.6]}
19... Bxg2 {[%clk 0:01:51.5]} 20. Kxg2 {[%clk 0:01:30.2]} 20... cxb4 {[%clk
0:01:52.8]} 21. axb4 {[%clk 0:01:30.9]} 21... Bd4 {[%clk 0:01:52.1]} 22. h4
{[%clk 0:01:23.9]} 22... Bxe3 {[%clk 0:01:51.6]} 23. fxe3 {[%clk 0:01:25.8]}
23... Re5 {[%clk 0:01:43.8]} 24. Qc4 {[%clk 0:01:20.9]} 24... Rxe3 {[%clk
0:01:40.8]} 25. h5 {[%clk 0:01:21.7]} 25... Rd2+ {[%clk 0:01:31.8]} 26. Kh3
{[%clk 0:01:21.9]} 26... Rdd3 {[%clk 0:01:32.1]} 27. h6 {[%clk 0:01:20.7]} 27...
Rxg3+ {[%clk 0:01:32.6]} 28. Kh2 {[%clk 0:01:22.2]} 28... Rh3+ {[%clk
0:01:16.5]} 29. Kg2 {[%clk 0:01:23]} 29... Rdg3+ {[%clk 0:01:17.7]} 30. Kf2
{[%clk 0:01:23.7]} 30... Rg5 {[%clk 0:01:15.1]} 31. Qc1 {[%clk 0:00:33]} 31...
Rgh5 {[%clk 0:01:05.5]} 32. b5 {[%clk 0:00:11.7]} 32... Rh1 {[%clk 0:00:53.4]}
33. Qxc6 {[%clk 0:00:02.7]} 33... Rf5+ {[%clk 0:00:53.7]} 34. Kg3 {[%clk
0:00:03.6]} 34... Rxh6 {[%clk 0:00:53.5]} 35. Qa8+ {[%clk 0:00:03.7]} 35... Kg7
{[%clk 0:00:54.6]} 36. Qxa7 {[%clk 0:00:05]} 36... Rg5+ {[%clk 0:00:42]} 37. Kf4
{[%clk 0:00:04.8]} 37... Rh4+ {[%clk 0:00:32.7]} 38. Kxg5 {[%clk 0:00:03]} 38...
Rb4 {[%clk 0:00:26.2]} 39. b6 {[%clk 0:00:02.6]} 39... h6# {[%clk 0:00:26.9]}
0-1

[Event "*** Titled Tuesday Blitz"]
[Site "Chess.com"]
[Date "2019.02.05"]
[Round "8"]
[White "arctic_t00"]
[Black "dmosesov"]
[Result "1-0"]
[WhiteElo "2366"]
[BlackElo "2348"]
[TimeControl "180+2"]
[EndTime "14:57:20 PST"]
[Termination "arctic_t00 won by resignation"]

1. d4 {[%clk 0:03:00.9]} 1... Nf6 {[%clk 0:03:00.7]} 2. Nf3 {[%clk 0:03:01.3]}
2... b6 {[%clk 0:03:01.6]} 3. c4 {[%clk 0:03:02.5]} 3... Bb7 {[%clk 0:03:02.6]}
4. Nc3 {[%clk 0:03:04]} 4... e6 {[%clk 0:03:02.1]} 5. a3 {[%clk 0:03:05.2]} 5...
g6 {[%clk 0:02:51.6]} 6. d5 {[%clk 0:03:02.3]} 6... Bg7 {[%clk 0:02:50.9]} 7. e4
{[%clk 0:03:00.5]} 7... exd5 {[%clk 0:02:50.1]} 8. exd5 {[%clk 0:02:56.9]} 8...
O-O {[%clk 0:02:50.6]} 9. Be2 {[%clk 0:02:58]} 9... c6 {[%clk 0:02:41.1]} 10.
O-O {[%clk 0:02:58.1]} 10... cxd5 {[%clk 0:02:41.8]} 11. cxd5 {[%clk 0:03:00]}
11... Na6 {[%clk 0:02:42.7]} 12. Bg5 {[%clk 0:02:50.7]} 12... h6 {[%clk
0:02:40.5]} 13. Bf4 {[%clk 0:02:51.6]} 13... Nc5 {[%clk 0:02:22.6]} 14. Rc1
{[%clk 0:02:19.2]} 14... Re8 {[%clk 0:02:22.6]} 15. b4 {[%clk 0:02:08.6]} 15...
Nce4 {[%clk 0:02:14.4]} 16. Nxe4 {[%clk 0:02:09.2]} 16... Nxe4 {[%clk
0:02:16.3]} 17. Qd3 {[%clk 0:01:13]} 17... d6 {[%clk 0:01:56.7]} 18. Rfe1 {[%clk
0:01:10.2]} 18... f5 {[%clk 0:01:55.1]} 19. Nd4 {[%clk 0:01:03.7]} 19... Qh4
{[%clk 0:01:21.7]} 20. g3 {[%clk 0:00:54.6]} 20... Qf6 {[%clk 0:01:17.1]} 21.
Ne6 {[%clk 0:00:52.9]} 21... Rac8 {[%clk 0:01:02.4]} 22. Bf3 {[%clk 0:00:22.9]}
22... g5 {[%clk 0:00:33.6]} 23. Be3 {[%clk 0:00:16.4]} 23... Rc3 {[%clk
0:00:31.8]} 24. Rxc3 {[%clk 0:00:16.2]} 24... Qxc3 {[%clk 0:00:33.7]} 25. Qxc3
{[%clk 0:00:14.7]} 25... Bxc3 {[%clk 0:00:29]} 26. Rc1 {[%clk 0:00:14.6]} 26...
Bxd5 {[%clk 0:00:27]} 27. Nc7 {[%clk 0:00:13.9]} 27... Bb2 {[%clk 0:00:13.3]}
28. Rb1 {[%clk 0:00:11.6]} 28... Bc6 {[%clk 0:00:07]} 29. Nxe8 {[%clk
0:00:11.6]} 29... Bxa3 {[%clk 0:00:06.7]} 30. Nxd6 {[%clk 0:00:11.4]} 30... g4
{[%clk 0:00:05.2]} 31. Nxf5 {[%clk 0:00:10.8]} 31... gxf3 {[%clk 0:00:05.8]} 32.
Ne7+ {[%clk 0:00:11.8]} 32... Kf7 {[%clk 0:00:06.6]} 33. Nxc6 {[%clk 0:00:13.7]}
33... a5 {[%clk 0:00:06.6]} 34. bxa5 {[%clk 0:00:13.7]} 34... bxa5 {[%clk
0:00:08.5]} 35. Ne5+ {[%clk 0:00:15.3]} 35... Ke6 {[%clk 0:00:09.2]} 36. Nxf3
{[%clk 0:00:17.2]} 1-0

[Event "*** Titled Tuesday Blitz"]
[Site "Chess.com"]
[Date "2019.02.05"]
[Round "8"]
[White "GukeshDommaraju"]
[Black "Astaneh"]
[Result "1-0"]
[WhiteElo "2691"]
[BlackElo "2555"]
[TimeControl "180+2"]
[EndTime "14:57:23 PST"]
[Termination "GukeshDommaraju won by resignation"]

1. e4 {[%clk 0:03:01.1]} 1... e5 {[%clk 0:03:00.1]} 2. Nf3 {[%clk 0:03:01.9]}
2... Nc6 {[%clk 0:03:01.7]} 3. Bc4 {[%clk 0:03:02.6]} 3... Bc5 {[%clk
0:03:02.2]} 4. O-O {[%clk 0:03:03.9]} 4... Nf6 {[%clk 0:03:03.8]} 5. d4 {[%clk
0:03:04.9]} 5... Bxd4 {[%clk 0:03:04.2]} 6. Nxd4 {[%clk 0:03:05.9]} 6... Nxd4
{[%clk 0:03:06.1]} 7. f4 {[%clk 0:03:07.2]} 7... d6 {[%clk 0:03:07.8]} 8. fxe5
{[%clk 0:03:08.7]} 8... dxe5 {[%clk 0:03:09.7]} 9. Bg5 {[%clk 0:03:10.3]} 9...
Qe7 {[%clk 0:03:11.2]} 10. c3 {[%clk 0:03:11.3]} 10... Ne6 {[%clk 0:03:10.9]}
11. Bxf6 {[%clk 0:03:11.2]} 11... Qc5+ {[%clk 0:03:10.8]} 12. Kh1 {[%clk
0:03:03.6]} 12... Qxc4 {[%clk 0:03:11.9]} 13. Bxe5 {[%clk 0:02:47]} 13... O-O
{[%clk 0:02:46.5]} 14. Nd2 {[%clk 0:02:46.8]} 14... Qb5 {[%clk 0:02:47.3]} 15.
Nf3 {[%clk 0:02:33.6]} 15... Qxb2 {[%clk 0:02:46.6]} 16. Nh4 {[%clk 0:02:26.4]}
16... f6 {[%clk 0:02:44.7]} 17. Bg3 {[%clk 0:01:56.7]} 17... Ng5 {[%clk
0:02:08.9]} 18. e5 {[%clk 0:01:42]} 18... Be6 {[%clk 0:02:05.8]} 19. exf6 {[%clk
0:01:42.5]} 19... Rxf6 {[%clk 0:02:07.7]} 20. Rxf6 {[%clk 0:01:42.8]} 20... gxf6
{[%clk 0:02:09.6]} 21. Rb1 {[%clk 0:01:36.9]} 21... Qxc3 {[%clk 0:02:03]} 22.
Rxb7 {[%clk 0:01:37.5]} 22... Ne4 {[%clk 0:01:59.3]} 23. Be1 {[%clk 0:01:06.5]}
23... Qc4 {[%clk 0:01:02]} 24. Qf3 {[%clk 0:00:54.5]} 24... Bd5 {[%clk
0:00:49.1]} 25. Rb1 {[%clk 0:00:52.6]} 25... Kh8 {[%clk 0:00:44.2]} 26. h3
{[%clk 0:00:47.3]} 26... Rg8 {[%clk 0:00:44.6]} 27. Kh2 {[%clk 0:00:42.3]} 27...
Qd4 {[%clk 0:00:36.2]} 28. Rd1 {[%clk 0:00:25.6]} 28... Qe5+ {[%clk 0:00:30.1]}
29. Kg1 {[%clk 0:00:26.6]} 29... c6 {[%clk 0:00:20.2]} 30. Qe3 {[%clk
0:00:26.3]} 30... Re8 {[%clk 0:00:16.7]} 31. Qh6 {[%clk 0:00:14.3]} 31... Ng5
{[%clk 0:00:09.9]} 32. Ng6+ {[%clk 0:00:12.6]} 32... Kg8 {[%clk 0:00:10.3]} 33.
Nxe5 {[%clk 0:00:13.5]} 33... Rxe5 {[%clk 0:00:12]} 34. Qxf6 {[%clk 0:00:14.1]}
34... Nf7 {[%clk 0:00:13.4]} 35. Bc3 {[%clk 0:00:14.7]} 35... Rg5 {[%clk
0:00:13]} 36. g4 {[%clk 0:00:14.7]} 36... h5 {[%clk 0:00:13.8]} 37. Re1 {[%clk
0:00:15.5]} 37... hxg4 {[%clk 0:00:11.4]} 38. Re8+ {[%clk 0:00:16.1]} 38... Kh7
{[%clk 0:00:13]} 39. Rh8+ {[%clk 0:00:17.1]} 39... Nxh8 {[%clk 0:00:14.4]} 40.
Qxg5 {[%clk 0:00:18.3]} 1-0

[Event "*** Titled Tuesday Blitz"]
[Site "Chess.com"]
[Date "2019.02.05"]
[Round "8"]
[White "iLuusions"]
[Black "Feegus"]
[Result "1-0"]
[WhiteElo "2616"]
[BlackElo "2384"]
[TimeControl "180+2"]
[EndTime "14:57:23 PST"]
[Termination "iLuusions won by checkmate"]

1. d4 {[%clk 0:03:01.8]} 1... Nf6 {[%clk 0:02:55.8]} 2. c4 {[%clk 0:03:02.9]}
2... c5 {[%clk 0:02:57.2]} 3. d5 {[%clk 0:03:03.7]} 3... b5 {[%clk 0:02:58.7]}
4. Nd2 {[%clk 0:03:04.1]} 4... g6 {[%clk 0:02:56.8]} 5. b3 {[%clk 0:03:05.5]}
5... Bg7 {[%clk 0:02:57.1]} 6. Bb2 {[%clk 0:03:06.8]} 6... O-O {[%clk
0:02:54.5]} 7. Qc2 {[%clk 0:03:07.9]} 7... d6 {[%clk 0:02:52.9]} 8. e4 {[%clk
0:03:00.5]} 8... b4 {[%clk 0:02:53]} 9. Bd3 {[%clk 0:03:00.1]} 9... a5 {[%clk
0:02:52.7]} 10. Ne2 {[%clk 0:02:46.4]} 10... e6 {[%clk 0:02:49.1]} 11. O-O
{[%clk 0:02:45.8]} 11... Re8 {[%clk 0:02:46.7]} 12. h3 {[%clk 0:02:35.1]} 12...
Ra7 {[%clk 0:02:44.6]} 13. Rae1 {[%clk 0:02:26.2]} 13... a4 {[%clk 0:02:33.6]}
14. f4 {[%clk 0:02:24.1]} 14... a3 {[%clk 0:02:33.5]} 15. Ba1 {[%clk 0:02:24.3]}
15... exd5 {[%clk 0:02:08.6]} 16. e5 {[%clk 0:01:47.1]} 16... dxe5 {[%clk
0:01:55.5]} 17. fxe5 {[%clk 0:01:46.7]} 17... Ne4 {[%clk 0:01:55.9]} 18. Bxe4
{[%clk 0:01:30.4]} 18... dxe4 {[%clk 0:01:57]} 19. Nxe4 {[%clk 0:01:32.3]} 19...
Bf5 {[%clk 0:01:53.3]} 20. N2g3 {[%clk 0:01:31.8]} 20... Bxe5 {[%clk 0:01:47]}
21. Nf6+ {[%clk 0:01:11.8]} 21... Qxf6 {[%clk 0:01:22.3]} 22. Nxf5 {[%clk
0:01:07.1]} 22... gxf5 {[%clk 0:01:16.3]} 23. Kh1 {[%clk 0:00:42.8]} 23... f4
{[%clk 0:01:07.2]} 24. Re4 {[%clk 0:00:09]} 24... Rae7 {[%clk 0:00:59.5]} 25.
Bxe5 {[%clk 0:00:09]} 25... Rxe5 {[%clk 0:00:57.2]} 26. Rexf4 {[%clk 0:00:09.8]}
26... Qg6 {[%clk 0:00:40.8]} 27. Qf2 {[%clk 0:00:10.2]} 27... Re2 {[%clk
0:00:37.5]} 28. Qf3 {[%clk 0:00:11.4]} 28... R8e3 {[%clk 0:00:36.5]} 29. Qa8
{[%clk 0:00:12.4]} 29... Kg7 {[%clk 0:00:18.3]} 30. Rg4 {[%clk 0:00:12.6]} 30...
Nd7 {[%clk 0:00:09]} 31. Rxg6+ {[%clk 0:00:13]} 31... hxg6 {[%clk 0:00:10.5]}
32. Qc6 {[%clk 0:00:10.7]} 32... Ne5 {[%clk 0:00:08]} 33. Qxc5 {[%clk
0:00:10.9]} 33... Nd3 {[%clk 0:00:04.8]} 34. Qd4+ {[%clk 0:00:10.5]} 34... Kh7
{[%clk 0:00:02.5]} 35. Rxf7+ {[%clk 0:00:10.9]} 35... Kh6 {[%clk 0:00:02.6]} 36.
Qh4# {[%clk 0:00:11.3]} 1-0

[Event "*** Titled Tuesday Blitz"]
[Site "Chess.com"]
[Date "2019.02.05"]
[Round "8"]
[White "CM_Perligero"]
[Black "Witaliss"]
[Result "0-1"]
[WhiteElo "2199"]
[BlackElo "2386"]
[TimeControl "180+2"]
[EndTime "14:57:29 PST"]
[Termination "Witaliss won by resignation"]

1. Nf3 {[%clk 0:03:01.9]} 1... d5 {[%clk 0:03:00.2]} 2. g3 {[%clk 0:03:03.8]}
2... Nf6 {[%clk 0:03:00.1]} 3. Bg2 {[%clk 0:03:05.7]} 3... c6 {[%clk 0:03:01.3]}
4. O-O {[%clk 0:03:07.6]} 4... Bg4 {[%clk 0:03:01.7]} 5. d4 {[%clk 0:03:09.5]}
5... Nbd7 {[%clk 0:03:02]} 6. c4 {[%clk 0:03:10.3]} 6... e6 {[%clk 0:03:02.4]}
7. Qc2 {[%clk 0:03:11.1]} 7... Be7 {[%clk 0:03:01.2]} 8. c5 {[%clk 0:03:11.2]}
8... Ne4 {[%clk 0:02:58.5]} 9. Nc3 {[%clk 0:03:11.9]} 9... f5 {[%clk 0:02:58.9]}
10. h3 {[%clk 0:03:07.8]} 10... Bh5 {[%clk 0:02:59]} 11. Bf4 {[%clk 0:03:05]}
11... O-O {[%clk 0:02:58.8]} 12. Ne5 {[%clk 0:03:03.6]} 12... Nxe5 {[%clk
0:02:45.7]} 13. Bxe5 {[%clk 0:03:04.1]} 13... Bf6 {[%clk 0:02:46.1]} 14. Nxe4
{[%clk 0:03:00.9]} 14... fxe4 {[%clk 0:02:46]} 15. f4 {[%clk 0:02:57.4]} 15...
exf3 {[%clk 0:02:44.1]} 16. exf3 {[%clk 0:02:53.8]} 16... Bxe5 {[%clk
0:02:42.1]} 17. dxe5 {[%clk 0:02:55.7]} 17... Qg5 {[%clk 0:02:43]} 18. g4 {[%clk
0:02:49.6]} 18... Qe3+ {[%clk 0:02:37.2]} 19. Qf2 {[%clk 0:02:33.7]} 19... Qxf2+
{[%clk 0:02:37.7]} 20. Kxf2 {[%clk 0:02:32.5]} 20... Bg6 {[%clk 0:02:38.6]} 21.
Ke3 {[%clk 0:02:33.6]} 21... b6 {[%clk 0:02:36.2]} 22. Rac1 {[%clk 0:02:25.1]}
22... b5 {[%clk 0:02:33.9]} 23. f4 {[%clk 0:02:23.8]} 23... a5 {[%clk
0:02:34.1]} 24. b3 {[%clk 0:02:21.3]} 24... a4 {[%clk 0:02:33.2]} 25. b4 {[%clk
0:02:10.7]} 25... h6 {[%clk 0:02:27.9]} 26. a3 {[%clk 0:02:07.4]} 26... Ra7
{[%clk 0:02:28.7]} 27. h4 {[%clk 0:02:03.4]} 27... Raf7 {[%clk 0:02:28.8]} 28.
Bh3 {[%clk 0:02:03.8]} 28... Re7 {[%clk 0:02:25.6]} 29. Rf2 {[%clk 0:02:01.8]}
29... h5 {[%clk 0:02:21.7]} 30. gxh5 {[%clk 0:01:55.9]} 30... Bxh5 {[%clk
0:02:22.1]} 31. Rg1 {[%clk 0:01:56.5]} 31... Kh7 {[%clk 0:02:19.5]} 32. Kd4
{[%clk 0:01:45.6]} 32... Bg6 {[%clk 0:02:14.9]} 33. Rfg2 {[%clk 0:01:41.3]}
33... Rxf4+ {[%clk 0:02:08]} 34. Ke3 {[%clk 0:01:41.2]} 34... Re4+ {[%clk
0:02:08.7]} 35. Kd2 {[%clk 0:01:29.5]} 35... Bh5 {[%clk 0:02:05.3]} 36. Bxe6
{[%clk 0:01:21.6]} 36... Rxe6 {[%clk 0:02:03.1]} 37. Rxg7+ {[%clk 0:01:22.4]}
37... Kh6 {[%clk 0:02:04.1]} 38. Rg8 {[%clk 0:01:23.7]} 38... Bg6 {[%clk
0:01:49.2]} 39. h5 {[%clk 0:01:24.1]} 39... Bh7 {[%clk 0:01:50]} 40. Rf8 {[%clk
0:01:11.4]} 40... R4xe5 {[%clk 0:01:49.9]} 41. Rg2 {[%clk 0:01:11.8]} 41... Rf5
{[%clk 0:01:46]} 42. Rh8 {[%clk 0:01:00.5]} 42... Ref6 {[%clk 0:01:41.8]} 43.
Re2 {[%clk 0:00:55.9]} 43... Rf8 {[%clk 0:01:35.1]} 44. Re6+ {[%clk 0:00:54.4]}
44... R5f6 {[%clk 0:01:36]} 45. Rxf8 {[%clk 0:00:44.6]} 45... Rxe6 {[%clk
0:01:35.4]} 46. Rd8 {[%clk 0:00:46.2]} 46... Kxh5 {[%clk 0:01:34.9]} 47. Kc3
{[%clk 0:00:45.5]} 47... Kg5 {[%clk 0:01:33.8]} 48. Kd4 {[%clk 0:00:44]} 48...
Be4 {[%clk 0:01:30.3]} 49. Rf8 {[%clk 0:00:41.7]} 49... Bf5 {[%clk 0:01:28.9]}
50. Rf7 {[%clk 0:00:39.6]} 50... Kf4 {[%clk 0:01:28.5]} 51. Rf8 {[%clk
0:00:37.1]} 51... Re4+ {[%clk 0:01:28.6]} 52. Kc3 {[%clk 0:00:37.4]} 52... Re3+
{[%clk 0:01:29.1]} 53. Kd2 {[%clk 0:00:36.1]} 53... Rxa3 {[%clk 0:01:28.9]} 54.
Rf6 {[%clk 0:00:34.9]} 54... Rb3 {[%clk 0:01:27.8]} 55. Rxc6 {[%clk 0:00:35.4]}
55... Rxb4 {[%clk 0:01:28.8]} 56. Rd6 {[%clk 0:00:36.7]} 56... Ke5 {[%clk
0:01:28]} 57. Rb6 {[%clk 0:00:35.5]} 57... a3 {[%clk 0:01:27.2]} 58. c6 {[%clk
0:00:36.1]} 58... a2 {[%clk 0:01:26.7]} 0-1

[Event "*** Titled Tuesday Blitz"]
[Site "Chess.com"]
[Date "2019.02.05"]
[Round "8"]
[White "Bayernbk"]
[Black "Kirill_Klukin"]
[Result "0-1"]
[WhiteElo "2443"]
[BlackElo "2624"]
[TimeControl "180+2"]
[EndTime "14:57:31 PST"]
[Termination "Kirill_Klukin won by resignation"]

1. e4 {[%clk 0:02:59.2]} 1... c5 {[%clk 0:02:59.5]} 2. c3 {[%clk 0:03:00.1]}
2... Nf6 {[%clk 0:02:59.2]} 3. e5 {[%clk 0:03:00.8]} 3... Nd5 {[%clk 0:03:00.2]}
4. d4 {[%clk 0:03:02.7]} 4... cxd4 {[%clk 0:03:01.4]} 5. Nf3 {[%clk 0:03:04.6]}
5... Nc6 {[%clk 0:03:02.6]} 6. cxd4 {[%clk 0:03:06.5]} 6... d6 {[%clk
0:03:03.7]} 7. Bc4 {[%clk 0:03:08.2]} 7... e6 {[%clk 0:03:05.2]} 8. O-O {[%clk
0:03:08.3]} 8... Be7 {[%clk 0:03:05.4]} 9. Qe2 {[%clk 0:03:09.4]} 9... O-O
{[%clk 0:03:05.6]} 10. Rd1 {[%clk 0:03:10.7]} 10... Qc7 {[%clk 0:03:05.7]} 11.
Nc3 {[%clk 0:03:11.7]} 11... Nxc3 {[%clk 0:03:06.3]} 12. bxc3 {[%clk 0:03:13.6]}
12... dxe5 {[%clk 0:03:08]} 13. dxe5 {[%clk 0:03:14.7]} 13... b6 {[%clk
0:03:03.6]} 14. Bd3 {[%clk 0:03:14]} 14... Bb7 {[%clk 0:03:04.4]} 15. Qe4 {[%clk
0:03:15.4]} 15... g6 {[%clk 0:03:05]} 16. Bh6 {[%clk 0:03:17]} 16... Rfd8 {[%clk
0:03:05.6]} 17. Qf4 {[%clk 0:03:18.6]} 17... Rd5 {[%clk 0:03:03.4]} 18. Be4
{[%clk 0:03:14.7]} 18... Rc5 {[%clk 0:03:03.2]} 19. h4 {[%clk 0:03:02.7]} 19...
Rb8 {[%clk 0:02:54.8]} 20. Bxc6 {[%clk 0:02:53.3]} 20... Bxc6 {[%clk 0:02:54.9]}
21. Bg5 {[%clk 0:02:45]} 21... Bxf3 {[%clk 0:02:53.3]} 22. Bxe7 {[%clk
0:02:34.5]} 22... Qxe7 {[%clk 0:02:45.1]} 23. Qxf3 {[%clk 0:02:35.7]} 23... Rbc8
{[%clk 0:02:38]} 24. Rd3 {[%clk 0:02:10]} 24... Rxe5 {[%clk 0:02:37.8]} 25. Rad1
{[%clk 0:02:11.6]} 25... Qxh4 {[%clk 0:02:35]} 26. Qb7 {[%clk 0:02:08.3]} 26...
Rf8 {[%clk 0:02:32.7]} 27. Qxa7 {[%clk 0:02:07.6]} 27... Rh5 {[%clk 0:02:33.2]}
28. f3 {[%clk 0:01:57.3]} 28... Qh2+ {[%clk 0:02:17.2]} 29. Kf1 {[%clk
0:01:50.5]} 29... Rg5 {[%clk 0:02:16.7]} 30. g4 {[%clk 0:01:42.1]} 30... h5
{[%clk 0:02:06.8]} 31. Rd8 {[%clk 0:01:21.1]} 31... hxg4 {[%clk 0:01:42.5]} 32.
Qa8 {[%clk 0:00:42.4]} 32... Qh1+ {[%clk 0:01:32.2]} 33. Kf2 {[%clk 0:00:43.9]}
33... g3+ {[%clk 0:01:25.1]} 34. Ke3 {[%clk 0:00:45]} 34... Re5+ {[%clk
0:00:47.6]} 35. Kf4 {[%clk 0:00:44.7]} 35... Rf5+ {[%clk 0:00:34.6]} 36. Kg4
{[%clk 0:00:11.7]} 36... Qh5+ {[%clk 0:00:31.6]} 37. Kxg3 {[%clk 0:00:12.6]}
37... Rg5+ {[%clk 0:00:33]} 38. Kf2 {[%clk 0:00:11.8]} 38... Qh4+ {[%clk
0:00:31.5]} 39. Kf1 {[%clk 0:00:06.6]} 39... Qh3+ {[%clk 0:00:32.3]} 40. Kf2
{[%clk 0:00:07.2]} 40... Qh2+ {[%clk 0:00:31.2]} 41. Ke3 {[%clk 0:00:07.4]}
41... Re5+ {[%clk 0:00:30.5]} 42. Kd3 {[%clk 0:00:08.5]} 42... Qe2+ {[%clk
0:00:28.4]} 0-1